fUSD/lending_fUSD_20260626
["ID","MTS","AMOUNT","RATE_DAILY","PERIOD"]
[426481548,1782447040000,-312.34,0.00019175,2]
[426481545,1782447040000,-151.0,0.00019175,2]
[426481544,1782447040000,-644.42,0.00019175,2]
[426481551,1782447040000,-648.74,0.00019175,2]
[426481555,1782447040000,-153.296407,0.00019178,2]
[426481556,1782447040000,-20518.94,0.00019178,2]
[426481557,1782447040000,-152.380904,0.00019178,2]
[426481554,1782447040000,-644.42,0.00019175,2]
[426481558,1782447040000,-151.0,0.00019178,2]
[426481553,1782447040000,-644.45,0.00019175,2]
[426481528,1782447040000,-356.0,0.00019148,2]
[426481542,1782447040000,-644.42,0.00019171,2]
[426481531,1782447040000,-152.31,0.00019168,2]
[426481478,1782447040000,-171.0,0.00018148,2]
[426481529,1782447040000,-171.0,0.00019148,2]
[426481559,1782447040000,-151.0,0.00019178,2]
[426481480,1782447040000,-200.0,0.00018148,2]
[426481481,1782447040000,-185.24,0.00018345,2]
[426481488,1782447040000,-36712.0,0.00018443,2]
[426481484,1782447040000,-151.0,0.00018347,2]
[426481490,1782447040000,-3982.11145078,0.000185,2]
[426481492,1782447040000,-194.73666777,0.000185,2]
[426481494,1782447040000,-1392.92520606,0.000185,2]
[426481496,1782447040000,-3982.11145078,0.000187,2]
[426481498,1782447040000,-1392.92520606,0.000187,2]
[426481486,1782447040000,-151.0,0.00018347,2]
[426481500,1782447040000,-3982.11145078,0.000189,2]
[426481502,1782447040000,-1392.92520606,0.000189,2]
[426481533,1782447040000,-646.43,0.00019168,2]
[426481504,1782447040000,-150.0,0.00019,2]
[426481515,1782447040000,-6084.0,0.00019102,2]
[426481513,1782447040000,-3649.0,0.00019102,2]
[426481521,1782447040000,-813.0,0.00019148,2]
[426481517,1782447040000,-612.0,0.00019148,2]
[426481525,1782447040000,-614.0,0.00019148,2]
[426481506,1782447040000,-2361.16931348,0.00019,2]
[426481522,1782447040000,-1156.0,0.00019148,2]
[426481511,1782447040000,-1392.92520606,0.000191,2]
[426481523,1782447040000,-406.0,0.00019148,2]
[426481524,1782447040000,-237.0,0.00019148,2]
[426481519,1782447040000,-241.0,0.00019148,2]
[426481526,1782447040000,-253.0,0.00019148,2]
[426481535,1782447040000,-151.08,0.00019168,2]
[426481509,1782447040000,-3982.11145078,0.000191,2]
[426481563,1782447040000,-305.31360355,0.00019339,2]
[426481602,1782447040000,-10093.6054337,0.00019951,2]
[426481552,1782447040000,-151.13,0.00019175,2]
[426481598,1782447040000,-6036.7136426,0.00019674,3]
[426481597,1782447040000,-3982.11145078,0.000196,2]
[426481595,1782447040000,-150.0,0.00019566,2]
[426481599,1782447040000,-3982.11145078,0.000198,2]
[426481600,1782447040000,-1846.02332337,0.00019837,2]
[426481603,1782447040000,-644.42,0.0001999,2]
[426481601,1782447040000,-3364.5351446,0.00019853,2]
[426481625,1782447040000,-185.25,0.00019997,2]
[426481607,1782447040000,-645.92,0.0001999,2]
[426481609,1782447040000,-647.74,0.0001999,2]
[426481612,1782447040000,-151.0,0.0001999,2]
[426481611,1782447040000,-644.42,0.0001999,2]
[426481608,1782447040000,-185.24,0.0001999,2]
[426481613,1782447040000,-151.42,0.0001999,2]
[426481614,1782447040000,-206.99,0.00019991,2]
[426481617,1782447040000,-644.42,0.00019993,2]
[426481616,1782447040000,-185.21,0.00019993,2]
[426481618,1782447040000,-644.42,0.00019996,2]
[426481615,1782447040000,-151.0,0.00019993,2]
[426481620,1782447040000,-151.0,0.00019996,2]
[426481619,1782447040000,-151.0,0.00019996,2]
[426481623,1782447040000,-643.64,0.00019997,2]
[426481624,1782447040000,-185.24,0.00019997,2]
[426481622,1782447040000,-184.04,0.00019996,2]
[426481621,1782447040000,-482.36,0.00019996,2]
[426481626,1782447040000,-644.42,0.00019997,2]
[426481561,1782447040000,-3982.11145078,0.000193,2]
[426481596,1782447040000,-1277.0,0.00019566,2]
[426481593,1782447040000,-151.0,0.00019563,2]
[426481610,1782447040000,-185.24,0.0001999,2]
[426481604,1782447040000,-151.4,0.0001999,2]
[426481606,1782447040000,-644.42,0.0001999,2]
[426481565,1782447040000,-301.64,0.000194,2]
[426481576,1782447040000,-151.0,0.00019563,2]
[426481575,1782447040000,-151.0,0.00019563,2]
[426481577,1782447040000,-151.0,0.00019563,2]
[426481578,1782447040000,-151.0,0.00019563,2]
[426481564,1782447040000,-3982.11145078,0.000194,2]
[426481566,1782447040000,-259.17293621,0.0001953,2]
[426481567,1782447040000,-500.0,0.00019563,2]
[426481572,1782447040000,-151.0,0.00019563,2]
[426481574,1782447040000,-151.0,0.00019563,2]
[426481569,1782447040000,-151.0,0.00019563,2]
[426481568,1782447040000,-1846.02332337,0.00019563,2]
[426481571,1782447040000,-151.0,0.00019563,2]
[426481562,1782447040000,-1392.92520606,0.000193,2]
[426481580,1782447040000,-151.0,0.00019563,2]
[426481584,1782447040000,-151.0,0.00019563,2]
[426481605,1782447040000,-482.49,0.0001999,2]
[426481589,1782447040000,-962.95382805,0.00019563,2]
[426481583,1782447040000,-1500.0,0.00019563,2]
[426481587,1782447040000,-151.0,0.00019563,2]
[426481591,1782447040000,-151.0,0.00019563,2]
[426481594,1782447040000,-154.19835409,0.00019563,2]
[426481585,1782447040000,-151.0,0.00019563,2]
[426481586,1782447040000,-151.0,0.00019563,2]
[426481590,1782447040000,-151.0,0.00019563,2]
[426481588,1782447040000,-151.0,0.00019563,2]
[426481592,1782447040000,-151.0,0.00019563,2]
[426481582,1782447040000,-151.0,0.00019563,2]
[426481671,1782447041000,-7250.18085006,0.00020262,2]
[426481678,1782447041000,-498.47886567,0.000206,2]
[426481670,1782447041000,-3982.11145078,0.000202,2]
[426481655,1782447041000,-306.0,0.00020148,2]
[426481667,1782447041000,-151.0,0.00020167,2]
[426481663,1782447041000,-184.041865,0.00020167,2]
[426481656,1782447041000,-356.0,0.00020148,2]
[426481664,1782447041000,-184.041859,0.00020167,2]
[426481662,1782447041000,-184.041865,0.00020167,2]
[426481659,1782447041000,-151.0,0.00020167,2]
[426481674,1782447041000,-498.47886567,0.000204,2]
[426481666,1782447041000,-151.0,0.00020167,2]
[426481668,1782447041000,-593.5553195,0.00020167,2]
[426481672,1782447041000,-1846.02332337,0.00020385,2]
[426481679,1782447041000,-1846.02332337,0.00020659,2]
[426481673,1782447041000,-230.4,0.000204,7]
[426481677,1782447041000,-151.0,0.00020548,2]
[426481675,1782447041000,-152.0,0.00020449,3]
[426481676,1782447041000,-151.0,0.00020548,2]
[426481683,1782447041000,-498.47886567,0.000208,2]
[426481684,1782447041000,-482.49,0.00020812,2]
[426481680,1782447041000,-1500.0,0.00020659,2]
[426481685,1782447041000,-151.0,0.00020812,2]
[426481682,1782447041000,-170.07,0.00020747,2]
[426481688,1782447041000,-151.0,0.00020812,2]
[426481681,1782447041000,-170.07,0.00020747,2]
[426481665,1782447041000,-151.0,0.00020167,2]
[426481669,1782447041000,-498.47886567,0.000202,2]
[426481657,1782447041000,-171.0,0.00020148,2]
[426481629,1782447041000,-644.42,0.00019998,2]
[426481660,1782447041000,-151.0,0.00020167,2]
[426481627,1782447041000,-151.0,0.00019997,2]
[426481628,1782447041000,-253.03,0.00019997,2]
[426481630,1782447041000,-4335.0,0.0002,2]
[426481632,1782447041000,-928.0,0.0002,2]
[426481631,1782447041000,-225.013892,0.0002,2]
[426481639,1782447041000,-200.0,0.0002,10]
[426481635,1782447041000,-498.47886567,0.0002,2]
[426481633,1782447041000,-1204.0,0.0002,2]
[426481634,1782447041000,-80000.0,0.0002,2]
[426481636,1782447041000,-3982.11145078,0.0002,2]
[426481637,1782447041000,-1267.0,0.0002,2]
[426481638,1782447041000,-400.0,0.0002,2]
[426481641,1782447041000,-185.24,0.00020002,2]
[426481654,1782447041000,-253.0,0.00020148,2]
[426481640,1782447041000,-486.88,0.0002,2]
[426481653,1782447041000,-614.0,0.00020148,2]
[426481652,1782447041000,-237.0,0.00020148,2]
[426481649,1782447041000,-813.0,0.00020148,2]
[426481648,1782447041000,-241.0,0.00020148,2]
[426481645,1782447041000,-1500.0,0.00020111,2]
[426481650,1782447041000,-1156.0,0.00020148,2]
[426481651,1782447041000,-406.0,0.00020148,2]
[426481643,1782447041000,-519.34037523,0.00020111,2]
[426481646,1782447041000,-276.60472261,0.00020126,2]
[426481644,1782447041000,-1846.02332337,0.00020111,2]
[426481647,1782447041000,-612.0,0.00020148,2]
[426481661,1782447041000,-184.041865,0.00020167,2]
[426481658,1782447041000,-200.0,0.00020148,2]
[426481642,1782447041000,-300.0,0.000201,10]
[426481689,1782447041000,-482.5,0.00020812,2]
[426481687,1782447041000,-151.0,0.00020812,2]
[426481686,1782447041000,-573.73,0.00020812,2]
[426481728,1782447041000,-241.0,0.00021148,2]
[426481725,1782447041000,-5000.0,0.00021128,2]
[426481727,1782447041000,-612.0,0.00021148,2]
[426481729,1782447041000,-813.0,0.00021148,2]
[426481724,1782447041000,-5000.0,0.00021128,2]
[426481726,1782447041000,-5000.0,0.00021128,2]
[426481730,1782447041000,-1156.0,0.00021148,2]
[426481723,1782447041000,-5000.0,0.00021128,2]
[426481732,1782447041000,-237.0,0.00021148,2]
[426481735,1782447041000,-306.0,0.00021148,2]
[426481733,1782447041000,-614.0,0.00021148,2]
[426481737,1782447041000,-171.0,0.00021148,2]
[426481734,1782447041000,-253.0,0.00021148,2]
[426481731,1782447041000,-406.0,0.00021148,2]
[426481744,1782447041000,-510.94,0.00021273,2]
[426481742,1782447041000,-1500.0,0.00021207,2]
[426481738,1782447041000,-200.0,0.00021148,2]
[426481741,1782447041000,-1846.02332337,0.00021207,2]
[426481740,1782447041000,-301.64,0.000212,2]
[426481743,1782447041000,-18547.43,0.00021273,2]
[426481746,1782447041000,-1846.02332337,0.00021481,2]
[426481751,1782447041000,-151.0,0.00021633,2]
[426481749,1782447041000,-1058.28666352,0.000216,2]
[426481750,1782447041000,-573.73,0.00021633,2]
[426481745,1782447041000,-1058.28666352,0.000214,2]
[426481748,1782447041000,-486.88,0.00021569,2]
[426481747,1782447041000,-436.02405171,0.00021566,2]
[426481691,1782447041000,-151.0,0.00020813,2]
[426481739,1782447041000,-1058.28666352,0.000212,2]
[426481722,1782447041000,-5000.0,0.00021128,2]
[426481736,1782447041000,-356.0,0.00021148,2]
[426481720,1782447041000,-150.0,0.00021,2]
[426481721,1782447041000,-1267.0,0.00021,2]
[426481701,1782447041000,-482.49,0.00020819,2]
[426481703,1782447041000,-185.24,0.00020819,2]
[426481704,1782447041000,-151.0,0.00020819,2]
[426481695,1782447041000,-151.0,0.00020815,2]
[426481697,1782447041000,-483.44,0.00020818,2]
[426481693,1782447041000,-185.24,0.00020815,2]
[426481692,1782447041000,-151.0,0.00020813,2]
[426481696,1782447041000,-151.0,0.00020815,2]
[426481705,1782447041000,-151.0,0.00020819,2]
[426481694,1782447041000,-151.0,0.00020815,2]
[426481702,1782447041000,-482.49,0.00020819,2]
[426481698,1782447041000,-235.2,0.00020818,2]
[426481699,1782447041000,-482.84,0.00020818,2]
[426481700,1782447041000,-644.45,0.00020819,2]
[426481690,1782447041000,-151.0,0.00020812,2]
[426481719,1782447041000,-12108.58025313,0.00021,2]
[426481715,1782447041000,-185.24,0.00020819,2]
[426481717,1782447041000,-1846.02332337,0.00020933,2]
[426481707,1782447041000,-185.94,0.00020819,2]
[426481706,1782447041000,-151.0,0.00020819,2]
[426481712,1782447041000,-483.66,0.00020819,2]
[426481709,1782447041000,-151.35,0.00020819,2]
[426481716,1782447041000,-482.5,0.00020824,2]
[426481713,1782447041000,-151.0,0.00020819,2]
[426481718,1782447041000,-1058.28666352,0.00021,2]
[426481714,1782447041000,-482.49,0.00020819,2]
[426481710,1782447041000,-482.5,0.00020819,2]
[426481708,1782447041000,-185.24,0.00020819,2]
[426481711,1782447041000,-644.42,0.00020819,2]
[426481791,1782447042000,-1267.0,0.00022,2]
[426481795,1782447042000,-1058.28666352,0.000221,2]
[426481794,1782447042000,-1846.02332337,0.00022029,2]
[426481789,1782447042000,-30370.79844328,0.00022,4]
[426481785,1782447042000,-1846.02332337,0.00021755,2]
[426481786,1782447042000,-1058.28666352,0.000219,2]
[426481792,1782447042000,-450.0,0.00022,2]
[426481790,1782447042000,-150.0,0.00022,2]
[426481813,1782447042000,-418.79446771,0.00022407,2]
[426481796,1782447042000,-3649.0,0.00022102,2]
[426481787,1782447042000,-830.50800477,0.00021917,2]
[426481797,1782447042000,-6084.0,0.00022102,2]
[426481788,1782447042000,-5000.0,0.00021918,2]
[426481798,1782447042000,-622.22065568,0.00022148,2]
[426481807,1782447042000,-362.37685869,0.00022148,2]
[426481801,1782447042000,-1168.81582072,0.00022148,2]
[426481800,1782447042000,-821.48522654,0.00022148,2]
[426481802,1782447042000,-406.44420247,0.00022148,2]
[426481808,1782447042000,-179.4708075,0.00022148,2]
[426481803,1782447042000,-245.4558514,0.00022148,2]
[426481804,1782447042000,-623.33853543,0.00022148,2]
[426481806,1782447042000,-306.47238519,0.00022148,2]
[426481805,1782447042000,-266.73579368,0.00022148,2]
[426481809,1782447042000,-204.34152681,0.00022148,2]
[426481810,1782447042000,-1058.28666352,0.000223,2]
[426481812,1782447042000,-259.17293621,0.0002231,2]
[426481819,1782447042000,-151.0,0.00022455,2]
[426481825,1782447042000,-573.78,0.00022459,2]
[426481799,1782447042000,-258.34430227,0.00022148,2]
[426481784,1782447042000,-152.0,0.00021724,4]
[426481753,1782447042000,-151.0,0.00021633,2]
[426481776,1782447042000,-576.82,0.00021641,2]
[426481757,1782447042000,-151.0,0.00021633,2]
[426481756,1782447042000,-151.0,0.00021633,2]
[426481752,1782447042000,-151.0,0.00021633,2]
[426481754,1782447042000,-576.86,0.00021633,2]
[426481755,1782447042000,-151.0,0.00021633,2]
[426481758,1782447042000,-151.0,0.00021633,2]
[426481760,1782447042000,-151.0,0.00021637,2]
[426481759,1782447042000,-151.0,0.00021633,2]
[426481769,1782447042000,-573.73,0.0002164,2]
[426481768,1782447042000,-151.0,0.0002164,2]
[426481767,1782447042000,-151.0,0.0002164,2]
[426481761,1782447042000,-573.73,0.00021637,2]
[426481764,1782447042000,-573.73,0.0002164,2]
[426481765,1782447042000,-151.0,0.0002164,2]
[426481762,1782447042000,-482.5,0.00021637,2]
[426481770,1782447042000,-151.0,0.0002164,2]
[426481766,1782447042000,-151.0,0.0002164,2]
[426481763,1782447042000,-482.5,0.0002164,2]
[426481772,1782447042000,-573.74,0.00021641,2]
[426481781,1782447042000,-173.03,0.00021643,2]
[426481780,1782447042000,-151.0,0.00021641,2]
[426481771,1782447042000,-151.0,0.00021641,2]
[426481783,1782447042000,-300.91627243,0.00021723,2]
[426481773,1782447042000,-205.16,0.00021641,2]
[426481782,1782447042000,-151.0,0.00021646,2]
[426481774,1782447042000,-151.0,0.00021641,2]
[426481775,1782447042000,-151.0,0.00021641,2]
[426481778,1782447042000,-482.49,0.00021641,2]
[426481777,1782447042000,-185.24,0.00021641,2]
[426481779,1782447042000,-573.73,0.00021641,2]
[426481811,1782447042000,-1846.02332337,0.00022303,2]
[426481793,1782447042000,-347.38,0.00022,2]
[426481823,1782447042000,-151.0,0.00022457,2]
[426481867,1782447042000,-150.0,0.000231,2]
[426481865,1782447042000,-1267.0,0.00023,2]
[426481868,1782447042000,-1846.02332337,0.00023125,2]
[426481862,1782447042000,-6099.0725024,0.00023,7]
[426481858,1782447042000,-5000.0,0.00022806,2]
[426481864,1782447042000,-150.0,0.00023,2]
[426481869,1782447042000,-486.88,0.00023137,7]
[426481859,1782447042000,-5000.0,0.00022806,2]
[426481863,1782447042000,-1058.28666352,0.00023,2]
[426481866,1782447042000,-150.0,0.00023,2]
[426481871,1782447042000,-573.73,0.00023277,2]
[426481881,1782447042000,-573.74,0.00023284,2]
[426481882,1782447042000,-573.73,0.00023284,2]
[426481872,1782447042000,-573.73,0.00023277,2]
[426481873,1782447042000,-151.0,0.00023277,2]
[426481877,1782447042000,-151.0,0.00023284,2]
[426481876,1782447042000,-151.27,0.00023281,2]
[426481874,1782447042000,-153.11,0.00023277,2]
[426481875,1782447042000,-151.0,0.00023277,2]
[426481870,1782447042000,-150.0,0.000232,2]
[426481880,1782447042000,-573.73,0.00023284,2]
[426481878,1782447042000,-151.0,0.00023284,2]
[426481879,1782447042000,-151.0,0.00023284,2]
[426481886,1782447042000,-573.67,0.00023285,2]
[426481883,1782447042000,-151.0,0.00023284,2]
[426481887,1782447042000,-150.0,0.00023288,2]
[426481884,1782447042000,-152.76,0.00023284,2]
[426481885,1782447042000,-151.0,0.00023284,2]
[426481888,1782447042000,-154.06199172,0.00023288,2]
[426481861,1782447042000,-152.0,0.00023,5]
[426481860,1782447042000,-1846.02332337,0.00022851,2]
[426481821,1782447042000,-151.0,0.00022455,2]
[426481849,1782447042000,-1846.02332337,0.00022577,2]
[426481857,1782447042000,-5000.0,0.00022806,2]
[426481827,1782447042000,-151.0,0.00022459,2]
[426481814,1782447042000,-418.79446769,0.00022407,2]
[426481816,1782447042000,-151.0,0.00022455,2]
[426481817,1782447042000,-573.73,0.00022455,2]
[426481826,1782447042000,-573.74,0.00022459,2]
[426481828,1782447042000,-573.73,0.00022462,2]
[426481829,1782447042000,-151.2,0.00022462,2]
[426481830,1782447042000,-151.0,0.00022462,2]
[426481831,1782447042000,-573.73,0.00022462,2]
[426481832,1782447042000,-151.0,0.00022462,2]
[426481833,1782447042000,-573.16,0.00022462,2]
[426481838,1782447042000,-151.0,0.00022463,2]
[426481837,1782447042000,-573.73,0.00022462,2]
[426481839,1782447042000,-504.56,0.00022466,2]
[426481835,1782447042000,-573.74,0.00022462,2]
[426481836,1782447042000,-151.0,0.00022462,2]
[426481850,1782447042000,-211.0,0.000226,2]
[426481846,1782447042000,-292.26,0.00022466,2]
[426481844,1782447042000,-1347.4,0.00022466,2]
[426481855,1782447042000,-150.0,0.000228,2]
[426481856,1782447042000,-9843.67483982,0.00022806,2]
[426481847,1782447042000,-1058.28666352,0.000225,2]
[426481848,1782447042000,-1277.0,0.00022566,2]
[426481841,1782447042000,-315.33,0.00022466,2]
[426481854,1782447042000,-150.0,0.000227,2]
[426481853,1782447042000,-1058.28666352,0.000227,2]
[426481852,1782447042000,-347.43,0.00022691,2]
[426481834,1782447042000,-573.73,0.00022462,2]
[426481851,1782447042000,-18547.43,0.00022691,2]
[426481940,1782447043000,-193.043726,0.00023652,2]
[426481926,1782447043000,-170.93637311,0.00023652,2]
[426481927,1782447043000,-217.1219251,0.00023652,2]
[426481928,1782447043000,-175.50044896,0.00023652,2]
[426481942,1782447043000,-1846.02332337,0.00023673,2]
[426481912,1782447043000,-161.22859369,0.00023646,2]
[426481943,1782447043000,-1846.02332337,0.00023947,2]
[426481938,1782447043000,-168.83203233,0.00023652,2]
[426481929,1782447043000,-208.12497018,0.00023652,2]
[426481935,1782447043000,-178.26332024,0.00023652,2]
[426481937,1782447043000,-182.90246154,0.00023652,2]
[426481924,1782447043000,-192.17413561,0.00023652,2]
[426481933,1782447043000,-200.50214495,0.00023652,2]
[426481931,1782447043000,-201.39791359,0.00023652,2]
[426481959,1782447043000,-2013.89,0.00024174,2]
[426481946,1782447043000,-1267.0,0.00024,2]
[426481950,1782447043000,-151.35,0.00024103,2]
[426481945,1782447043000,-150.0,0.00024,2]
[426481956,1782447043000,-255.73,0.0002411,2]
[426481944,1782447043000,-808.08,0.00023998,2]
[426481951,1782447043000,-151.0,0.00024106,2]
[426481954,1782447043000,-151.0,0.00024107,2]
[426481953,1782447043000,-151.0,0.00024106,2]
[426481948,1782447043000,-500.0,0.00024,2]
[426481952,1782447043000,-289.64,0.00024106,2]
[426481955,1782447043000,-441.49,0.0002411,2]
[426481949,1782447043000,-151.0,0.00024099,2]
[426481947,1782447043000,-150.0,0.00024,2]
[426481918,1782447043000,-168.85718495,0.00023647,2]
[426481925,1782447043000,-200.29670488,0.00023652,2]
[426481919,1782447043000,-178.25068758,0.00023647,2]
[426481905,1782447043000,-157.85801191,0.0002364,2]
[426481911,1782447043000,-152.6866486,0.0002364,2]
[426481966,1782447043000,-1846.02332337,0.00024495,2]
[426481890,1782447043000,-185.08,0.00023293,2]
[426481889,1782447043000,-151.0,0.00023293,2]
[426481894,1782447043000,-8000.0,0.00023372,5]
[426481895,1782447043000,-1846.02332337,0.00023399,2]
[426481892,1782447043000,-151.0,0.00023293,2]
[426481891,1782447043000,-643.2,0.00023293,2]
[426481893,1782447043000,-150.0,0.000233,2]
[426481897,1782447043000,-473.0,0.00023481,2]
[426481907,1782447043000,-260.39109432,0.0002364,2]
[426481908,1782447043000,-209.65532363,0.0002364,2]
[426481896,1782447043000,-150.0,0.000234,2]
[426481899,1782447043000,-691.21,0.000235,14]
[426481903,1782447043000,-173.71098497,0.0002364,2]
[426481898,1782447043000,-2210.07937246,0.000235,2]
[426481906,1782447043000,-238.08681931,0.0002364,2]
[426481900,1782447043000,-150.0,0.000235,2]
[426481901,1782447043000,-170.45562036,0.0002364,2]
[426481904,1782447043000,-151.33038119,0.0002364,2]
[426481902,1782447043000,-183.67638003,0.0002364,2]
[426481916,1782447043000,-190.1575046,0.00023647,2]
[426481917,1782447043000,-167.99417719,0.00023647,2]
[426481913,1782447043000,-157.46039437,0.00023647,2]
[426481910,1782447043000,-191.33239919,0.0002364,2]
[426481909,1782447043000,-291.89404872,0.0002364,2]
[426481923,1782447043000,-169.25988349,0.00023652,2]
[426481920,1782447043000,-157.01345415,0.00023647,2]
[426481915,1782447043000,-202.74114551,0.00023647,2]
[426481922,1782447043000,-172.05357506,0.00023647,2]
[426481914,1782447043000,-150.00345718,0.00023647,2]
[426481962,1782447043000,-152.0,0.00024275,6]
[426481967,1782447043000,-180.0,0.000245,2]
[426482025,1782447043000,-3649.0,0.00025102,2]
[426481997,1782447043000,-337.71436989,0.00024904,2]
[426482008,1782447043000,-402.79582719,0.00024909,2]
[426482001,1782447043000,-338.51976698,0.00024909,2]
[426481999,1782447043000,-314.0269083,0.00024904,2]
[426482000,1782447043000,-344.10715012,0.00024904,2]
[426482002,1782447043000,-384.34827122,0.00024909,2]
[426481998,1782447043000,-356.50137516,0.00024904,2]
[426482009,1782447043000,-401.0042899,0.00024909,2]
[426482003,1782447043000,-400.59340975,0.00024909,2]
[426482006,1782447043000,-351.00089792,0.00024909,2]
[426482004,1782447043000,-341.87274623,0.00024909,2]
[426482005,1782447043000,-434.2438502,0.00024909,2]
[426482011,1782447043000,-365.80492308,0.00024909,2]
[426482010,1782447043000,-356.52664049,0.00024909,2]
[426482020,1782447043000,-1276.365294,0.00025,2]
[426482021,1782447043000,-150.0,0.00025,2]
[426482017,1782447043000,-151.0,0.00024929,2]
[426482016,1782447043000,-151.0,0.00024928,2]
[426482012,1782447043000,-337.66406466,0.00024909,2]
[426482014,1782447043000,-243.87991588,0.00024909,2]
[426482013,1782447043000,-386.087452,0.00024909,2]
[426482018,1782447043000,-573.3,0.00024937,2]
[426482019,1782447043000,-573.74,0.00024937,2]
[426482015,1782447043000,-151.0,0.00024921,2]
[426482022,1782447043000,-759.92,0.00025072,2]
[426482023,1782447043000,-259.17293621,0.0002509,2]
[426482024,1782447043000,-502.83,0.00025093,2]
[426481960,1782447043000,-301.85,0.000242,7]
[426482026,1782447043000,-6084.0,0.00025102,2]
[426481992,1782447043000,-314.92078874,0.00024904,2]
[426481990,1782447043000,-322.45718737,0.00024904,2]
[426482007,1782447043000,-416.24994036,0.00024909,2]
[426481993,1782447043000,-300.00691436,0.00024904,2]
[426481958,1782447043000,-482.48,0.00024115,2]
[426481989,1782447043000,-305.3732972,0.00024897,2]
[426481964,1782447043000,-150.0,0.000244,2]
[426481961,1782447043000,-1846.02332337,0.00024221,2]
[426481968,1782447043000,-405.28,0.00024543,7]
[426481965,1782447043000,-710.0,0.0002442,2]
[426481963,1782447043000,-150.0,0.000243,2]
[426481972,1782447043000,-153.246406,0.00024658,2]
[426481977,1782447043000,-340.91124073,0.00024897,2]
[426481970,1782447043000,-160.02799572,0.00024657,2]
[426481976,1782447043000,-1846.02332355,0.00024769,2]
[426481978,1782447043000,-229.36482636,0.00024897,2]
[426481979,1782447043000,-367.35276006,0.00024897,2]
[426481982,1782447043000,-302.66076238,0.00024897,2]
[426481969,1782447043000,-347.38,0.00024543,7]
[426481957,1782447043000,-151.0,0.00024112,2]
[426481975,1782447043000,-486.88,0.00024706,7]
[426481988,1782447043000,-382.66479838,0.00024897,2]
[426481987,1782447043000,-583.78809744,0.00024897,2]
[426481985,1782447043000,-476.17363862,0.00024897,2]
[426481986,1782447043000,-419.31064726,0.00024897,2]
[426481983,1782447043000,-315.71602381,0.00024897,2]
[426481971,1782447043000,-187.73,0.00024658,2]
[426481994,1782447043000,-405.48229102,0.00024904,2]
[426481996,1782447043000,-335.98835437,0.00024904,2]
[426481984,1782447043000,-520.78218864,0.00024897,2]
[426481980,1782447043000,-240.48004253,0.00024897,2]
[426481974,1782447043000,-755.47,0.00024658,2]
[426481981,1782447043000,-347.42196994,0.00024897,2]
[426481973,1782447043000,-1000.0,0.00024658,2]
[426481995,1782447043000,-380.31500921,0.00024904,2]
[426482071,1782447044000,-237.39399729,0.00025743,2]
[426482074,1782447044000,-242.39797539,0.00025743,2]
[426482073,1782447044000,-224.92096243,0.00025743,2]
[426482067,1782447044000,-483.68578106,0.00025742,2]
[426482072,1782447044000,-608.22343652,0.00025743,2]
[426482061,1782447044000,-239.39168449,0.00025735,2]
[426482062,1782447044000,-875.68214616,0.00025735,2]
[426482066,1782447044000,-204.92304601,0.00025741,2]
[426482068,1782447044000,-219.42425046,0.00025743,2]
[426482070,1782447044000,-450.01037154,0.00025743,2]